[Event "*** Titled Tuesday Blitz"]
[Site "Chess.com"]
[Date "2020.12.29"]
[Round "2"]
[White "NaciSAN"]
[Black "Firegrizzly"]
[Result "1/2-1/2"]
[WhiteElo "2167"]
[BlackElo "2600"]
[TimeControl "180+1"]
[EndTime "10:17:39 PST"]
[Termination "Game drawn by repetition"]

1. e4 {[%clk 0:03:00.9]} 1... e6 {[%clk 0:02:59.4]} 2. d3 {[%clk 0:03:00.4]}
2... d5 {[%clk 0:02:59.9]} 3. Nd2 {[%clk 0:03:00.7]} 3... c5 {[%clk 0:02:59.3]}
4. Ngf3 {[%clk 0:03:01]} 4... Nf6 {[%clk 0:02:58.1]} 5. g3 {[%clk 0:03:01.1]}
5... b6 {[%clk 0:02:57.6]} 6. Bg2 {[%clk 0:03:01.2]} 6... Bb7 {[%clk 0:02:57.9]}
7. O-O {[%clk 0:03:01.1]} 7... Qc7 {[%clk 0:02:55.2]} 8. Re1 {[%clk 0:03:00.6]}
8... Nc6 {[%clk 0:02:53.6]} 9. c3 {[%clk 0:02:56.4]} 9... Be7 {[%clk 0:02:49.5]}
10. e5 {[%clk 0:02:52.8]} 10... Nd7 {[%clk 0:02:49]} 11. Qe2 {[%clk 0:02:52.8]}
11... g5 {[%clk 0:02:44.2]} 12. h3 {[%clk 0:02:42.5]} 12... h5 {[%clk
0:02:43.4]} 13. g4 {[%clk 0:02:41.5]} 13... O-O-O {[%clk 0:02:39.7]} 14. a3
{[%clk 0:02:34.8]} 14... hxg4 {[%clk 0:02:38.8]} 15. hxg4 {[%clk 0:02:34.6]}
15... d4 {[%clk 0:02:39.2]} 16. cxd4 {[%clk 0:02:30]} 16... Nxd4 {[%clk
0:02:37.4]} 17. Nxd4 {[%clk 0:02:29.9]} 17... cxd4 {[%clk 0:02:35.8]} 18. Nf3
{[%clk 0:01:39.2]} 18... Kb8 {[%clk 0:02:29.6]} 19. Bd2 {[%clk 0:01:36.1]} 19...
Nc5 {[%clk 0:02:28.2]} 20. Rac1 {[%clk 0:01:32.5]} 20... Qd7 {[%clk 0:02:24.7]}
21. b4 {[%clk 0:01:31.3]} 21... Na4 {[%clk 0:02:24.1]} 22. Rc4 {[%clk
0:01:23.6]} 22... Bd5 {[%clk 0:02:16]} 23. Rxd4 {[%clk 0:01:09.3]} 23... Qb7
{[%clk 0:02:15.9]} 24. Rxd5 {[%clk 0:00:56]} 24... Qxd5 {[%clk 0:02:10.5]} 25.
d4 {[%clk 0:00:50.3]} 25... b5 {[%clk 0:01:43]} 26. Be3 {[%clk 0:00:47.3]} 26...
Qc4 {[%clk 0:01:41.9]} 27. Qd2 {[%clk 0:00:38.7]} 27... Qc3 {[%clk 0:01:40.2]}
28. Qe2 {[%clk 0:00:36.9]} 28... Qc4 {[%clk 0:01:39.8]} 29. Qd2 {[%clk
0:00:36.9]} 29... Rc8 {[%clk 0:01:36.7]} 30. Bf1 {[%clk 0:00:31.8]} 30... Qd5
{[%clk 0:01:32.4]} 31. Bg2 {[%clk 0:00:31.7]} 31... Qc4 {[%clk 0:01:24.7]} 32.
Bf1 {[%clk 0:00:31]} 32... Qc2 {[%clk 0:01:23.1]} 33. Bxb5 {[%clk 0:00:29.8]}
33... Qxd2 {[%clk 0:01:21.5]} 34. Nxd2 {[%clk 0:00:29.8]} 34... Nc3 {[%clk
0:01:21]} 35. Bf1 {[%clk 0:00:27.8]} 35... Rhd8 {[%clk 0:01:14]} 36. Bg2 {[%clk
0:00:26.8]} 36... a6 {[%clk 0:01:12.2]} 37. Nb3 {[%clk 0:00:23.8]} 37... Nb5
{[%clk 0:01:09.2]} 38. Nc5 {[%clk 0:00:22.6]} 38... Bxc5 {[%clk 0:01:08.6]} 39.
bxc5 {[%clk 0:00:21.3]} 39... Nxa3 {[%clk 0:01:05.1]} 40. Ra1 {[%clk 0:00:21.1]}
40... Nb5 {[%clk 0:00:57.4]} 41. Rxa6 {[%clk 0:00:21.4]} 41... Nxd4 {[%clk
0:00:56.4]} 42. Ra8+ {[%clk 0:00:14]} 42... Kc7 {[%clk 0:00:56.2]} 43. Ra7+
{[%clk 0:00:13.3]} 43... Kb8 {[%clk 0:00:56.3]} 44. Ra8+ {[%clk 0:00:13.7]}
44... Kc7 {[%clk 0:00:56.3]} 45. Ra7+ {[%clk 0:00:14.1]} 45... Kb8 {[%clk
0:00:56.6]} 46. Ra8+ {[%clk 0:00:14.4]} 1/2-1/2

[Event "*** Titled Tuesday Blitz"]
[Site "Chess.com"]
[Date "2020.12.29"]
[Round "2"]
[White "OK97"]
[Black "pavel_skatchkov"]
[Result "0-1"]
[WhiteElo "2794"]
[BlackElo "2567"]
[TimeControl "180+1"]
[EndTime "10:17:46 PST"]
[Termination "pavel_skatchkov won by resignation"]

1. d4 {[%clk 0:03:00.9]} 1... d5 {[%clk 0:02:58.8]} 2. c4 {[%clk 0:03:01.2]}
2... c6 {[%clk 0:02:54.2]} 3. Nc3 {[%clk 0:03:01.7]} 3... Nf6 {[%clk 0:02:53.2]}
4. e3 {[%clk 0:03:02.2]} 4... Bf5 {[%clk 0:02:52.1]} 5. Nf3 {[%clk 0:03:00.9]}
5... e6 {[%clk 0:02:51.9]} 6. Nh4 {[%clk 0:03:01]} 6... Be4 {[%clk 0:02:48.9]}
7. f3 {[%clk 0:03:01.2]} 7... Bg6 {[%clk 0:02:48.8]} 8. g4 {[%clk 0:03:01.4]}
8... Nbd7 {[%clk 0:02:46.8]} 9. g5 {[%clk 0:03:01.1]} 9... Nh5 {[%clk
0:02:45.6]} 10. e4 {[%clk 0:02:58.3]} 10... dxe4 {[%clk 0:02:43.6]} 11. fxe4
{[%clk 0:02:56.9]} 11... Be7 {[%clk 0:02:42.9]} 12. Rg1 {[%clk 0:02:43.6]} 12...
Qc7 {[%clk 0:02:42.1]} 13. Nf3 {[%clk 0:02:14.3]} 13... O-O-O {[%clk 0:02:38.2]}
14. Be3 {[%clk 0:02:14.3]} 14... f5 {[%clk 0:02:23.4]} 15. e5 {[%clk 0:01:58.5]}
15... Nc5 {[%clk 0:02:12.7]} 16. Qe2 {[%clk 0:01:47.2]} 16... f4 {[%clk
0:02:06.6]} 17. Bc1 {[%clk 0:00:57.4]} 17... Nd3+ {[%clk 0:02:02.2]} 18. Kd1
{[%clk 0:00:57.9]} 18... Qb6 {[%clk 0:01:54.4]} 19. Na4 {[%clk 0:00:47.4]} 19...
Qa5 {[%clk 0:01:38.1]} 20. b3 {[%clk 0:00:47.5]} 20... Kb8 {[%clk 0:01:14.9]}
21. Bd2 {[%clk 0:00:46]} 21... Bb4 {[%clk 0:01:14.4]} 22. Bh3 {[%clk 0:00:39.7]}
22... b5 {[%clk 0:01:02.9]} 23. Nc5 {[%clk 0:00:08.7]} 23... Nxc5 {[%clk
0:00:54.1]} 24. dxc5 {[%clk 0:00:09.6]} 24... Rxd2+ {[%clk 0:00:51.4]} 25. Nxd2
{[%clk 0:00:10.5]} 25... Rd8 {[%clk 0:00:51.3]} 26. Rg2 {[%clk 0:00:05.9]} 26...
f3 {[%clk 0:00:40.5]} 27. Qxf3 {[%clk 0:00:05.2]} 27... Bxd2 {[%clk 0:00:40.2]}
28. Qxc6 {[%clk 0:00:03.4]} 28... Nf4 {[%clk 0:00:33.3]} 29. Qxb5+ {[%clk
0:00:01.6]} 29... Qxb5 {[%clk 0:00:32.7]} 30. cxb5 {[%clk 0:00:02.5]} 30... Nxg2
{[%clk 0:00:30.6]} 31. Bxg2 {[%clk 0:00:02.1]} 31... Bc3+ {[%clk 0:00:30.1]} 0-1

[Event "*** Titled Tuesday Blitz"]
[Site "Chess.com"]
[Date "2020.12.29"]
[Round "2"]
[White "winniethepooh04"]
[Black "Lucas_Tomiello"]
[Result "1-0"]
[WhiteElo "2232"]
[BlackElo "2419"]
[TimeControl "180+1"]
[EndTime "10:17:46 PST"]
[Termination "winniethepooh04 won on time"]

1. e4 {[%clk 0:03:00.9]} 1... c5 {[%clk 0:03:00.2]} 2. Nf3 {[%clk 0:03:00]} 2...
d6 {[%clk 0:03:00.4]} 3. d4 {[%clk 0:03:00.4]} 3... cxd4 {[%clk 0:03:01.3]} 4.
Nxd4 {[%clk 0:03:00.3]} 4... Nf6 {[%clk 0:03:01.9]} 5. Nc3 {[%clk 0:03:00.4]}
5... a6 {[%clk 0:03:02.4]} 6. Bg5 {[%clk 0:03:00.4]} 6... Nbd7 {[%clk
0:03:01.6]} 7. f4 {[%clk 0:02:51.7]} 7... Qc7 {[%clk 0:02:56.1]} 8. Qd2 {[%clk
0:02:48]} 8... h6 {[%clk 0:02:55.5]} 9. Bh4 {[%clk 0:02:44.9]} 9... e6 {[%clk
0:02:54.7]} 10. Bd3 {[%clk 0:02:40.7]} 10... b5 {[%clk 0:02:51.5]} 11. a3 {[%clk
0:02:31.8]} 11... Bb7 {[%clk 0:02:51.2]} 12. O-O-O {[%clk 0:02:32.1]} 12... Be7
{[%clk 0:02:43.3]} 13. Bg3 {[%clk 0:02:13]} 13... Nc5 {[%clk 0:02:32.2]} 14.
Rhe1 {[%clk 0:02:06.2]} 14... Nh5 {[%clk 0:02:17.7]} 15. Bf2 {[%clk 0:02:00.9]}
15... Nxf4 {[%clk 0:02:15.1]} 16. Bxb5+ {[%clk 0:01:45.3]} 16... axb5 {[%clk
0:02:03.4]} 17. Ndxb5 {[%clk 0:01:45.5]} 17... Qb6 {[%clk 0:01:28.4]} 18. b4
{[%clk 0:01:34.2]} 18... O-O {[%clk 0:00:47.4]} 19. bxc5 {[%clk 0:01:32.8]}
19... dxc5 {[%clk 0:00:44.4]} 20. Be3 {[%clk 0:01:21.5]} 20... Ng6 {[%clk
0:00:38.7]} 21. Qd7 {[%clk 0:01:06.8]} 21... Bc6 {[%clk 0:00:22.8]} 22. Qc7
{[%clk 0:01:04]} 22... Qxc7 {[%clk 0:00:22.2]} 23. Nxc7 {[%clk 0:01:03.6]} 23...
Rxa3 {[%clk 0:00:22.6]} 24. N3b5 {[%clk 0:00:50.4]} 24... Ra5 {[%clk 0:00:18.6]}
25. Bd2 {[%clk 0:00:46.5]} 25... Rxb5 {[%clk 0:00:18.5]} 26. Nxb5 {[%clk
0:00:45.4]} 26... Bxb5 {[%clk 0:00:19.4]} 27. Bc3 {[%clk 0:00:41.1]} 27... Bf6
{[%clk 0:00:17.5]} 28. e5 {[%clk 0:00:40.6]} 28... Bg5+ {[%clk 0:00:17.4]} 29.
Kb2 {[%clk 0:00:35.1]} 29... Rb8 {[%clk 0:00:17.3]} 30. Ka3 {[%clk 0:00:28.7]}
1-0

[Event "*** Titled Tuesday Blitz"]
[Site "Chess.com"]
[Date "2020.12.29"]
[Round "2"]
[White "Tekushka"]
[Black "chess4life23"]
[Result "1-0"]
[WhiteElo "2448"]
[BlackElo "2234"]
[TimeControl "180+1"]
[EndTime "10:17:47 PST"]
[Termination "Tekushka won by resignation"]

1. e4 {[%clk 0:03:00.9]} 1... c6 {[%clk 0:02:59.8]} 2. d4 {[%clk 0:02:59.9]}
2... d5 {[%clk 0:03:00.7]} 3. Nd2 {[%clk 0:03:00.2]} 3... dxe4 {[%clk
0:03:00.6]} 4. Nxe4 {[%clk 0:03:00.9]} 4... Nd7 {[%clk 0:03:01]} 5. Ng5 {[%clk
0:02:59.5]} 5... Ngf6 {[%clk 0:02:55.7]} 6. Bd3 {[%clk 0:02:57.8]} 6... e6
{[%clk 0:02:54.8]} 7. Qe2 {[%clk 0:02:56.4]} 7... Bd6 {[%clk 0:02:53.3]} 8. N1f3
{[%clk 0:02:51.5]} 8... h6 {[%clk 0:02:51.4]} 9. Ne4 {[%clk 0:02:48.5]} 9...
Nxe4 {[%clk 0:02:50.9]} 10. Qxe4 {[%clk 0:02:48.5]} 10... Nf6 {[%clk 0:02:51.8]}
11. Qe2 {[%clk 0:02:43.7]} 11... Qc7 {[%clk 0:02:51.1]} 12. Bd2 {[%clk
0:02:33.8]} 12... b6 {[%clk 0:02:51.4]} 13. O-O-O {[%clk 0:02:32.5]} 13... Bb7
{[%clk 0:02:51.9]} 14. Kb1 {[%clk 0:02:30]} 14... O-O-O {[%clk 0:02:51.4]} 15.
Ba6 {[%clk 0:02:24.8]} 15... Bxa6 {[%clk 0:02:42.2]} 16. Qxa6+ {[%clk
0:02:23.8]} 16... Kb8 {[%clk 0:02:38.7]} 17. Rhe1 {[%clk 0:02:21.1]} 17... Ng4
{[%clk 0:02:19.5]} 18. Qe2 {[%clk 0:02:12.8]} 18... Rhe8 {[%clk 0:01:37]} 19. h3
{[%clk 0:02:11.9]} 19... Nf6 {[%clk 0:01:37]} 20. Ne5 {[%clk 0:02:11.7]} 20...
Bxe5 {[%clk 0:01:34.8]} 21. dxe5 {[%clk 0:02:11]} 21... Nd5 {[%clk 0:01:25.5]}
22. Qg4 {[%clk 0:02:03.8]} 22... Rg8 {[%clk 0:01:17.3]} 23. h4 {[%clk
0:01:53.4]} 23... g5 {[%clk 0:01:08.6]} 24. hxg5 {[%clk 0:01:49.3]} 24... hxg5
{[%clk 0:01:09.5]} 25. Bxg5 {[%clk 0:01:32.8]} 25... Rc8 {[%clk 0:00:46.7]} 26.
Qh4 {[%clk 0:01:24.5]} 26... b5 {[%clk 0:00:41.2]} 27. f4 {[%clk 0:01:08.3]}
27... Qa5 {[%clk 0:00:30.8]} 28. Qf2 {[%clk 0:01:04.5]} 28... Qb4 {[%clk
0:00:29.6]} 29. Rd3 {[%clk 0:00:58.4]} 29... c5 {[%clk 0:00:25.6]} 30. Rb3
{[%clk 0:00:50.9]} 30... Qa5 {[%clk 0:00:24.6]} 31. c4 {[%clk 0:00:38.9]} 31...
Nb4 {[%clk 0:00:21.7]} 32. a3 {[%clk 0:00:37.6]} 32... bxc4 {[%clk 0:00:21.6]}
33. axb4 {[%clk 0:00:37.2]} 33... Qa4 {[%clk 0:00:20.2]} 34. Ra3 {[%clk
0:00:35.2]} 34... Qxb4 {[%clk 0:00:19.8]} 35. Rc1 {[%clk 0:00:35]} 35... Rc6
{[%clk 0:00:16.9]} 36. Qc2 {[%clk 0:00:33.9]} 36... Rb6 {[%clk 0:00:15.7]} 37.
Ra4 {[%clk 0:00:32.1]} 37... Qb3 {[%clk 0:00:12.4]} 38. Qxb3 {[%clk 0:00:29.6]}
1-0

[Event "*** Titled Tuesday Blitz"]
[Site "Chess.com"]
[Date "2020.12.29"]
[Round "2"]
[White "Kazmin_Dmitrij"]
[Black "realmadridtv"]
[Result "0-1"]
[WhiteElo "2248"]
[BlackElo "2455"]
[TimeControl "180+1"]
[EndTime "10:17:49 PST"]
[Termination "realmadridtv won on time"]

1. e4 {[%clk 0:03:00.9]} 1... e5 {[%clk 0:02:52.9]} 2. Nf3 {[%clk 0:03:00.3]}
2... Nc6 {[%clk 0:02:52.5]} 3. Bb5 {[%clk 0:03:00.1]} 3... a6 {[%clk 0:02:52.7]}
4. Ba4 {[%clk 0:02:59.6]} 4... d6 {[%clk 0:02:53.4]} 5. O-O {[%clk 0:02:54.6]}
5... Bd7 {[%clk 0:02:50.4]} 6. c3 {[%clk 0:02:54.1]} 6... g5 {[%clk 0:02:49.7]}
7. d4 {[%clk 0:02:52.8]} 7... g4 {[%clk 0:02:48.7]} 8. Ne1 {[%clk 0:02:52.1]}
8... h5 {[%clk 0:02:48.4]} 9. f4 {[%clk 0:02:45.3]} 9... Bg7 {[%clk 0:02:45.2]}
10. dxe5 {[%clk 0:02:36.1]} 10... dxe5 {[%clk 0:02:45]} 11. f5 {[%clk
0:02:35.8]} 11... Qe7 {[%clk 0:02:37.4]} 12. Nd2 {[%clk 0:02:22.2]} 12... Nf6
{[%clk 0:02:25.1]} 13. b4 {[%clk 0:02:17.7]} 13... O-O-O {[%clk 0:02:14.6]} 14.
Qe2 {[%clk 0:02:07.6]} 14... h4 {[%clk 0:01:59.1]} 15. Bb3 {[%clk 0:01:56]}
15... h3 {[%clk 0:01:57.2]} 16. g3 {[%clk 0:01:54.9]} 16... Nxb4 {[%clk
0:01:32.1]} 17. cxb4 {[%clk 0:01:52.5]} 17... Qxb4 {[%clk 0:01:31.9]} 18. Nc4
{[%clk 0:01:40.7]} 18... Bb5 {[%clk 0:01:16.7]} 19. Qc2 {[%clk 0:01:23.7]} 19...
Rd4 {[%clk 0:01:05.5]} 20. Nd3 {[%clk 0:00:43]} 20... Qe7 {[%clk 0:00:53.7]} 21.
Ba3 {[%clk 0:00:32.8]} 21... Qd8 {[%clk 0:00:53.6]} 22. Bc5 {[%clk 0:00:27.1]}
22... Nxe4 {[%clk 0:00:52.4]} 23. Ba7 {[%clk 0:00:23.3]} 23... Bc6 {[%clk
0:00:39.7]} 24. Ndxe5 {[%clk 0:00:16.7]} 24... Bxe5 {[%clk 0:00:34.9]} 25. Nxe5
{[%clk 0:00:16.6]} 25... Rd2 {[%clk 0:00:35.3]} 26. Nxc6 {[%clk 0:00:11.5]}
26... Rxc2 {[%clk 0:00:27.4]} 27. Nxd8 {[%clk 0:00:11.4]} 27... Rg2+ {[%clk
0:00:27.5]} 28. Kh1 {[%clk 0:00:11.2]} 28... Rxd8 {[%clk 0:00:28.2]} 29. Bxf7
{[%clk 0:00:08.9]} 29... Rdd2 {[%clk 0:00:25.5]} 30. Be6+ {[%clk 0:00:02.3]}
30... Kd8 {[%clk 0:00:25.7]} 0-1

[Event "*** Titled Tuesday Blitz"]
[Site "Chess.com"]
[Date "2020.12.29"]
[Round "2"]
[White "VerdeNotte"]
[Black "Susal_De_Silva"]
[Result "1-0"]
[WhiteElo "2889"]
[BlackElo "2563"]
[TimeControl "180+1"]
[EndTime "10:17:55 PST"]
[Termination "VerdeNotte won by resignation"]

1. Nf3 {[%clk 0:03:00.9]} 1... Nf6 {[%clk 0:02:59.1]} 2. g3 {[%clk 0:03:00.4]}
2... b6 {[%clk 0:02:58.9]} 3. Bg2 {[%clk 0:03:00.5]} 3... Bb7 {[%clk 0:02:59.8]}
4. O-O {[%clk 0:03:00.8]} 4... g6 {[%clk 0:02:59.7]} 5. d3 {[%clk 0:02:57.6]}
5... Bg7 {[%clk 0:02:57.8]} 6. e4 {[%clk 0:02:57.7]} 6... d6 {[%clk 0:02:57.3]}
7. c4 {[%clk 0:02:57.8]} 7... c5 {[%clk 0:02:56.2]} 8. Nc3 {[%clk 0:02:58.1]}
8... O-O {[%clk 0:02:55.9]} 9. h3 {[%clk 0:02:51.2]} 9... Nc6 {[%clk 0:02:53.9]}
10. Be3 {[%clk 0:02:51.4]} 10... Nd7 {[%clk 0:02:45.9]} 11. Qd2 {[%clk
0:02:51.1]} 11... Nd4 {[%clk 0:02:43.3]} 12. Bh6 {[%clk 0:02:49.5]} 12... Nxf3+
{[%clk 0:02:34.9]} 13. Bxf3 {[%clk 0:02:49.3]} 13... f5 {[%clk 0:02:34.8]} 14.
Bg2 {[%clk 0:02:44.8]} 14... Bxh6 {[%clk 0:02:02.2]} 15. Qxh6 {[%clk 0:02:44.3]}
15... Ne5 {[%clk 0:02:01.7]} 16. f4 {[%clk 0:02:30.6]} 16... Nf7 {[%clk
0:01:49.8]} 17. Qh4 {[%clk 0:02:30.4]} 17... e6 {[%clk 0:01:47.6]} 18. Qxd8
{[%clk 0:02:26.7]} 18... Raxd8 {[%clk 0:01:48.5]} 19. Rae1 {[%clk 0:02:18.4]}
19... Rfe8 {[%clk 0:01:35.2]} 20. Re2 {[%clk 0:02:06.2]} 20... fxe4 {[%clk
0:01:17.8]} 21. Bxe4 {[%clk 0:02:00]} 21... Bxe4 {[%clk 0:01:16]} 22. Nxe4
{[%clk 0:02:00.3]} 22... Kg7 {[%clk 0:01:15.7]} 23. Rfe1 {[%clk 0:01:55.4]}
23... e5 {[%clk 0:01:09.7]} 24. Nc3 {[%clk 0:01:51.5]} 24... Rf8 {[%clk
0:01:08.6]} 25. Nd5 {[%clk 0:01:50.4]} 25... Rde8 {[%clk 0:00:58.8]} 26. Kg2
{[%clk 0:01:49.7]} 26... h5 {[%clk 0:00:55.2]} 27. a3 {[%clk 0:01:43.2]} 27...
h4 {[%clk 0:00:49.6]} 28. gxh4 {[%clk 0:01:26.5]} 28... Rd8 {[%clk 0:00:29.4]}
29. Nc7 {[%clk 0:01:24.2]} 29... Kf6 {[%clk 0:00:24.4]} 30. Rf2 {[%clk 0:01:23]}
30... Ke7 {[%clk 0:00:15]} 31. f5 {[%clk 0:01:07.3]} 31... gxf5 {[%clk
0:00:13.8]} 32. Rxf5 {[%clk 0:01:07.6]} 32... Rg8+ {[%clk 0:00:14.1]} 33. Kh2
{[%clk 0:01:06.1]} 33... Nh6 {[%clk 0:00:14.4]} 34. Nd5+ {[%clk 0:01:01.9]}
34... Kd7 {[%clk 0:00:13]} 35. Rf6 {[%clk 0:01:02.5]} 35... Rh8 {[%clk
0:00:13.2]} 36. Rg1 {[%clk 0:01:01.6]} 36... Rdg8 {[%clk 0:00:12.5]} 37. Rxh6
{[%clk 0:01:01.2]} 37... Rxg1 {[%clk 0:00:10.2]} 38. Rxh8 {[%clk 0:01:01]} 38...
Rb1 {[%clk 0:00:10.5]} 39. Rh7+ {[%clk 0:01:01.1]} 39... Ke6 {[%clk 0:00:10]}
40. Rh6+ {[%clk 0:00:46]} 1-0

[Event "*** Titled Tuesday Blitz"]
[Site "Chess.com"]
[Date "2020.12.29"]
[Round "2"]
[White "MaevskiyNikolay"]
[Black "champ2005"]
[Result "0-1"]
[WhiteElo "2597"]
[BlackElo "3003"]
[TimeControl "180+1"]
[EndTime "10:17:56 PST"]
[Termination "champ2005 won on time"]

1. d4 {[%clk 0:03:00.7]} 1... g6 {[%clk 0:02:59.9]} 2. e4 {[%clk 0:02:59.9]}
2... d6 {[%clk 0:02:58.8]} 3. Nf3 {[%clk 0:03:00.1]} 3... Bg7 {[%clk 0:02:58]}
4. Bc4 {[%clk 0:02:59.7]} 4... Nf6 {[%clk 0:02:58.1]} 5. Nbd2 {[%clk 0:02:58]}
5... O-O {[%clk 0:02:52.5]} 6. Qe2 {[%clk 0:02:57.3]} 6... Nc6 {[%clk
0:02:51.2]} 7. c3 {[%clk 0:02:57.4]} 7... e5 {[%clk 0:02:51]} 8. dxe5 {[%clk
0:02:50.3]} 8... Nxe5 {[%clk 0:02:49.6]} 9. Nxe5 {[%clk 0:02:49.5]} 9... dxe5
{[%clk 0:02:50.5]} 10. O-O {[%clk 0:02:49.5]} 10... Nh5 {[%clk 0:02:50.8]} 11.
Nf3 {[%clk 0:02:47.5]} 11... h6 {[%clk 0:02:37.2]} 12. Be3 {[%clk 0:02:32.9]}
12... Qf6 {[%clk 0:02:36.2]} 13. Nd2 {[%clk 0:02:30]} 13... Nf4 {[%clk
0:02:31.7]} 14. Bxf4 {[%clk 0:02:26.3]} 14... exf4 {[%clk 0:02:18.4]} 15. Rfe1
{[%clk 0:02:25.9]} 15... Re8 {[%clk 0:02:18.8]} 16. Qd3 {[%clk 0:02:19.6]} 16...
Bg4 {[%clk 0:02:11.4]} 17. h3 {[%clk 0:02:15]} 17... Rad8 {[%clk 0:02:11.5]} 18.
Qc2 {[%clk 0:02:14.5]} 18... Bxh3 {[%clk 0:01:20.4]} 19. gxh3 {[%clk 0:02:10.1]}
19... f3 {[%clk 0:01:20.6]} 20. Nf1 {[%clk 0:01:48.2]} 20... Qg5+ {[%clk
0:01:14.6]} 21. Ng3 {[%clk 0:01:47.7]} 21... Be5 {[%clk 0:01:06.8]} 22. Re3
{[%clk 0:01:01]} 22... Bxg3 {[%clk 0:01:02.9]} 23. Rxf3 {[%clk 0:00:58.6]} 23...
Bxf2+ {[%clk 0:00:24.7]} 24. Kh1 {[%clk 0:00:50.2]} 24... Rd2 {[%clk 0:00:24.9]}
25. Bxf7+ {[%clk 0:00:49.7]} 25... Kg7 {[%clk 0:00:22.1]} 26. Qa4 {[%clk
0:00:23]} 26... Be3 {[%clk 0:00:12.9]} 27. Rf2 {[%clk 0:00:01.5]} 27... Rxf2
{[%clk 0:00:12.5]} 0-1

[Event "*** Titled Tuesday Blitz"]
[Site "Chess.com"]
[Date "2020.12.29"]
[Round "2"]
[White "JozefKneht"]
[Black "esapunov"]
[Result "0-1"]
[WhiteElo "2496"]
[BlackElo "2724"]
[TimeControl "180+1"]
[EndTime "10:17:56 PST"]
[Termination "esapunov won by resignation"]

1. d4 {[%clk 0:03:00.9]} 1... Nf6 {[%clk 0:02:59.6]} 2. Bf4 {[%clk 0:03:00.3]}
2... d6 {[%clk 0:02:58.9]} 3. e3 {[%clk 0:02:59.9]} 3... g6 {[%clk 0:02:57.6]}
4. h3 {[%clk 0:02:58.5]} 4... Bg7 {[%clk 0:02:57.7]} 5. Nf3 {[%clk 0:02:59]}
5... O-O {[%clk 0:02:58.2]} 6. Be2 {[%clk 0:02:59.5]} 6... c5 {[%clk 0:02:58.6]}
7. c3 {[%clk 0:02:57.9]} 7... b6 {[%clk 0:02:58.1]} 8. O-O {[%clk 0:02:56.8]}
8... Bb7 {[%clk 0:02:58.4]} 9. Nbd2 {[%clk 0:02:54.7]} 9... Nbd7 {[%clk
0:02:57.8]} 10. a4 {[%clk 0:02:54]} 10... a6 {[%clk 0:02:58]} 11. Bh2 {[%clk
0:02:54.3]} 11... Qb8 {[%clk 0:02:55]} 12. Bd3 {[%clk 0:02:53.2]} 12... b5
{[%clk 0:02:52.4]} 13. e4 {[%clk 0:02:39.5]} 13... c4 {[%clk 0:02:47.4]} 14. Bc2
{[%clk 0:02:38.9]} 14... Nb6 {[%clk 0:02:47.2]} 15. a5 {[%clk 0:02:32.4]} 15...
Nbd7 {[%clk 0:02:41.8]} 16. e5 {[%clk 0:02:32.2]} 16... Ne8 {[%clk 0:02:36.9]}
17. Qe2 {[%clk 0:02:18.9]} 17... dxe5 {[%clk 0:02:28.9]} 18. Nxe5 {[%clk
0:02:12.3]} 18... Qc8 {[%clk 0:02:24.8]} 19. Rfe1 {[%clk 0:02:08.7]} 19... Ndf6
{[%clk 0:02:07.8]} 20. Ne4 {[%clk 0:01:51.6]} 20... Nxe4 {[%clk 0:02:07.1]} 21.
Bxe4 {[%clk 0:01:51]} 21... Bxe4 {[%clk 0:02:06.5]} 22. Qxe4 {[%clk 0:01:51.5]}
22... Nf6 {[%clk 0:02:06.4]} 23. Qh4 {[%clk 0:01:51.1]} 23... e6 {[%clk
0:02:04.1]} 24. Bf4 {[%clk 0:01:49.7]} 24... Nd5 {[%clk 0:02:03.6]} 25. Bh6
{[%clk 0:01:47.4]} 25... Qd8 {[%clk 0:01:51.8]} 26. Qxd8 {[%clk 0:01:40]} 26...
Rfxd8 {[%clk 0:01:51.5]} 27. Bxg7 {[%clk 0:01:39.6]} 27... Kxg7 {[%clk
0:01:50.9]} 28. Rec1 {[%clk 0:01:23.1]} 28... Rac8 {[%clk 0:01:50]} 29. g3
{[%clk 0:01:22.7]} 29... g5 {[%clk 0:01:48]} 30. Kg2 {[%clk 0:01:19.8]} 30...
Rc7 {[%clk 0:01:47.7]} 31. Kf3 {[%clk 0:01:19.6]} 31... h5 {[%clk 0:01:43.5]}
32. Ke2 {[%clk 0:01:18.3]} 32... Rb8 {[%clk 0:01:39]} 33. Kd2 {[%clk 0:01:15.9]}
33... f6 {[%clk 0:01:34.4]} 34. Nf3 {[%clk 0:01:14.2]} 34... b4 {[%clk
0:01:34.6]} 35. Ra4 {[%clk 0:01:10.2]} 35... bxc3+ {[%clk 0:01:33.6]} 36. bxc3
{[%clk 0:01:07]} 36... Rb2+ {[%clk 0:01:30.9]} 37. Rc2 {[%clk 0:01:06.7]} 37...
Rb3 {[%clk 0:01:29.8]} 38. Ng1 {[%clk 0:01:04.4]} 38... Kg6 {[%clk 0:01:26.9]}
39. Ne2 {[%clk 0:01:04.8]} 39... Kf5 {[%clk 0:01:25.5]} 40. Nc1 {[%clk
0:00:59.2]} 40... Rb5 {[%clk 0:01:25.4]} 41. Ne2 {[%clk 0:00:57.3]} 41... Ke4
{[%clk 0:01:23.9]} 42. Ng1 {[%clk 0:00:55.2]} 42... Rb1 {[%clk 0:01:21]} 43. f3+
{[%clk 0:00:50.8]} 43... Kf5 {[%clk 0:01:19.9]} 44. Ne2 {[%clk 0:00:50.3]} 44...
h4 {[%clk 0:01:17.3]} 45. g4+ {[%clk 0:00:49.4]} 45... Kg6 {[%clk 0:01:17.4]}
46. Rc1 {[%clk 0:00:49]} 46... Rb2+ {[%clk 0:01:14.6]} 47. Rc2 {[%clk
0:00:48.4]} 47... Rb3 {[%clk 0:01:15.2]} 48. Rc1 {[%clk 0:00:45.5]} 48... f5
{[%clk 0:01:13.8]} 49. Rc2 {[%clk 0:00:45.5]} 49... Rb8 {[%clk 0:01:09.8]} 50.
Rc1 {[%clk 0:00:40.9]} 50... fxg4 {[%clk 0:01:03.9]} 51. fxg4 {[%clk 0:00:38.7]}
51... Rf8 {[%clk 0:01:03.9]} 52. Rb1 {[%clk 0:00:35.3]} 52... Rf2 {[%clk
0:01:03.6]} 53. Rb6 {[%clk 0:00:33.1]} 53... Nxb6 {[%clk 0:01:00.3]} 54. axb6
{[%clk 0:00:34]} 54... Rb7 {[%clk 0:01:00.8]} 55. Rxa6 {[%clk 0:00:33.5]} 55...
Rh2 {[%clk 0:01:00.2]} 56. Ra4 {[%clk 0:00:26.9]} 56... Rxb6 {[%clk 0:00:57.4]}
57. Rxc4 {[%clk 0:00:27.3]} 57... Rb2+ {[%clk 0:00:57]} 0-1